bitfinex/quotes_BTCUSD_20260308
["timestamp","ask_amount","ask_price","bid_price","bid_amount"]
[1772972709365,0.07429089,67305.0,67288.0,0.00152]
[1772972709581,0.07580978,67304.0,67288.0,0.00152]
[1772972709887,0.07580978,67304.0,67290.0,0.04919088]
[1772972710094,0.12365597,67304.0,67290.0,0.04919088]
[1772972710889,0.07580978,67304.0,67288.0,0.00152]
[1772972711194,0.07429199,67303.0,67291.0,0.0002]
[1772972711488,0.07581011,67304.0,67291.0,0.0002]
[1772972711489,0.07428978,67304.0,67293.0,0.04919088]
[1772972711726,0.07428978,67304.0,67294.0,0.00152]
[1772972713128,0.07428978,67304.0,67295.0,0.07429972]
[1772972713723,0.07450943,67305.0,67295.0,0.07429972]
[1772972713929,0.07427892,67314.0,67295.0,0.07429972]
[1772972713930,0.07428465,67309.0,67298.0,0.01835858]
[1772972714151,0.07580465,67309.0,67295.0,0.07429972]
[1772972714353,0.04784619,67308.0,67295.0,0.07429972]
[1772972714582,0.07428465,67309.0,67297.0,0.04919088]
[1772972714759,0.04784619,67308.0,67295.0,0.07429972]
[1772972714973,0.07428647,67307.0,67295.0,0.07429972]
[1772972716973,0.04784619,67306.0,67294.0,0.00152]
[1772972717179,0.12213487,67305.0,67294.0,0.07582066]
[1772972717480,0.04784619,67304.0,67294.0,0.07582066]
[1772972718200,0.09565682,67307.0,67294.0,0.07582066]
[1772972718201,0.07450658,67307.0,67294.0,0.07582066]
[1772972718357,0.00152,67305.0,67294.0,0.12501154]
[1772972719686,0.07580907,67305.0,67294.0,0.12501154]
[1772972720092,0.12365526,67305.0,67294.0,0.07582066]
[1772972720505,0.04784619,67304.0,67294.0,0.07582066]
[1772972721258,0.12213708,67303.0,67294.0,0.00152]
[1772972722622,0.04784619,67302.0,67291.0,0.00172]
[1772972723568,0.0742926,67302.0,67291.0,0.04939088]
[1772972723845,0.0742926,67302.0,67292.0,0.00152]
[1772972724709,0.07428882,67305.0,67292.0,0.00152]
[1772972724893,0.2215552,67305.0,67295.0,0.04919088]
[1772972725094,0.07428882,67305.0,67295.0,0.04919088]
[1772972725632,0.07428882,67305.0,67296.0,0.07429862]
[1772972725792,0.07428882,67305.0,67296.0,0.14169808]
[1772972726685,0.14726638,67309.0,67297.0,0.04919088]
[1772972726971,0.00022001,67305.0,67300.0,0.01835858]
[1772972727159,0.0742823,67311.0,67301.0,0.04919088]
[1772972727972,0.07450133,67312.0,67303.0,0.04919088]
[1772972728176,0.07450133,67312.0,67304.0,0.00152]
[1772972730056,0.07450133,67312.0,67305.0,0.07428868]
[1772972730729,0.07476453,67312.0,67305.0,0.07428868]
[1772972731114,0.07476453,67312.0,67304.0,0.07580942]
[1772972731115,0.07476453,67312.0,67304.0,0.0758095]
[1772972731319,0.07378029,67312.0,67304.0,0.0758095]
[1772972733022,0.0002632,67312.0,67304.0,0.0758095]
[1772972735278,0.07428206,67311.0,67304.0,0.0758095]
[1772972735437,0.07428206,67311.0,67304.0,0.00152]
[1772972735633,0.12239145,67311.0,67304.0,0.07428975]
[1772972735841,0.12239145,67311.0,67304.0,0.07380975]
[1772972736034,0.07454526,67311.0,67304.0,0.07380975]
[1772972736248,0.07454526,67311.0,67304.0,0.07228975]
[1772972736648,0.0002632,67311.0,67304.0,0.07228975]
[1772972737053,0.22153303,67320.0,67306.0,0.01851278]
[1772972737255,0.1919351,67325.0,67310.0,0.01851278]
[1772972737256,0.07449337,67319.0,67310.0,0.01851278]
[1772972737455,0.00022001,67319.0,67311.0,0.04919088]
[1772972738420,0.00022001,67319.0,67310.0,0.02003278]
[1772972738421,0.00575,67322.0,67313.0,0.04919088]
[1772972738870,0.08002012,67322.0,67313.0,0.04919088]
[1772972739327,0.08002012,67322.0,67314.0,0.07427875]
[1772972740174,0.08002012,67322.0,67313.0,0.07427875]
[1772972741921,0.08002012,67322.0,67311.0,0.07427985]
[1772972742396,0.00575,67322.0,67311.0,0.07427985]
[1772972742544,0.08002014,67322.0,67312.0,0.04738171]
[1772972743396,0.00575,67322.0,67312.0,0.06589449]
[1772972743600,0.0800202,67322.0,67313.0,0.04738171]
[1772972744013,0.04641195,67321.0,67310.0,0.00152]
[1772972744314,0.04641195,67319.0,67307.0,0.00152]
[1772972744859,0.04641195,67319.0,67307.0,0.00137]
[1772972746580,0.07427433,67318.0,67308.0,0.07428537]
[1772972747392,0.00597001,67322.0,67310.0,0.01851278]
[1772972747616,0.00597001,67322.0,67308.0,0.07428537]
[1772972747617,0.04641195,67321.0,67308.0,0.07428537]
[1772972748615,0.07427213,67320.0,67307.0,0.07428537]
[1772972748810,0.07427213,67320.0,67308.0,0.00152]
[1772972749248,0.07427213,67320.0,67309.0,0.00152]
[1772972749627,0.07427213,67320.0,67307.0,0.07428537]
[1772972749831,0.07427213,67320.0,67308.0,0.00152]
[1772972750304,0.07427213,67320.0,67309.0,0.00152]
[1772972750639,0.07427213,67320.0,67310.0,0.07428316]
[1772972751268,0.04641195,67319.0,67310.0,0.07428316]
[1772972753610,0.04641195,67317.0,67309.0,0.00152]
[1772972753741,0.04641195,67317.0,67309.0,0.07580368]
[1772972755968,0.07427654,67316.0,67309.0,0.07580368]
[1772972758073,0.07427654,67317.0,67309.0,0.07580368]
[1772972762722,0.07427654,67318.0,67309.0,0.07580368]
[1772972764297,0.04567887,67317.0,67304.0,0.07448934]
[1772972764590,0.00163905,67317.0,67306.0,0.01870609]
[1772972764730,0.07427654,67316.0,67308.0,0.07428537]
[1772972765648,0.07427654,67316.0,67309.0,0.01870609]
[1772972766020,0.07427654,67316.0,67308.0,0.07428537]
[1772972766931,0.00011905,67317.0,67307.0,0.07428537]
[1772972767576,0.00011905,67317.0,67309.0,0.04429475]
[1772972767790,0.07427323,67319.0,67310.0,0.01870609]
[1772972768002,0.07432628,67319.0,67310.0,0.01870609]
[1772972768626,0.12123656,67319.0,67307.0,0.07428537]
[1772972769788,0.12123656,67319.0,67307.0,0.07448537]
[1772972770435,0.12123656,67319.0,67307.0,0.07433537]
[1772972772757,0.00022001,67320.0,67311.0,0.04764569]
[1772972773109,0.00022001,67320.0,67312.0,0.01870609]
[1772972773576,0.07426117,67330.0,67316.0,0.01870609]
[1772972773776,0.07578317,67329.0,67318.0,0.01870609]
[1772972773927,0.07426317,67329.0,67318.0,0.02022609]
[1772972774128,0.07426317,67329.0,67319.0,0.01870609]
[1772972774332,0.04691028,67334.0,67319.0,0.01870609]
[1772972774536,0.04691028,67334.0,67318.0,0.04916569]
[1772972774537,0.07425961,67332.0,67320.0,0.06635178]
[1772972775927,0.07425961,67332.0,67321.0,0.07427102]
[1772972776296,0.07425961,67332.0,67322.0,0.01870609]
[1772972776890,0.04691028,67331.0,67320.0,0.07427102]
[1772972777251,0.04691028,67331.0,67321.0,0.00152]
[1772972777649,0.07425961,67332.0,67321.0,0.00152]
[1772972778386,0.07425961,67332.0,67322.0,0.07426992]
[1772972778387,0.04691028,67332.0,67322.0,0.07426992]
[1772972778884,0.04691028,67332.0,67321.0,0.00152]
[1772972779083,0.04691028,67332.0,67321.0,0.07579041]
[1772972779584,0.01869229,67329.0,67317.0,0.00152]
[1772972779767,0.01869229,67327.0,67317.0,0.00152]
[1772972779978,0.04691028,67326.0,67311.0,5.305e-05]
[1772972780161,0.04691028,67322.0,67311.0,5.305e-05]
[1772972781804,0.09296111,67323.0,67311.0,5.305e-05]
[1772972781805,0.00152,67321.0,67311.0,5.305e-05]
[1772972782115,0.04691028,67319.0,67311.0,5.305e-05]
[1772972782310,0.07427433,67318.0,67311.0,5.305e-05]
[1772972782485,0.04691028,67317.0,67311.0,5.305e-05]
[1772972783089,0.04691028,67317.0,67307.0,0.0002]
[1772972783293,0.04701636,67317.0,67307.0,0.0002]
[1772972783471,0.04701636,67317.0,67295.0,0.08004929]
[1772972783472,0.04691028,67315.0,67299.0,0.0002]
[1772972783680,0.01869229,67311.0,67295.0,0.00575]
[1772972783879,0.01869229,67308.0,67295.0,0.00575]
[1772972784079,0.04691028,67307.0,67295.0,0.00575]
[1772972784481,0.04691028,67305.0,67295.0,0.00575]
[1772972784893,0.04691028,67305.0,67295.0,0.08004971]
[1772972785090,0.00152,67306.0,67298.0,0.06605824]
[1772972785999,0.00152,67306.0,67298.0,0.01870609]
[1772972786201,0.00152,67306.0,67295.0,0.08004971]
[1772972786815,0.07428868,67305.0,67295.0,0.08004971]
[1772972787001,0.07428868,67306.0,67295.0,0.08004971]
[1772972787192,0.0758035,67310.0,67299.0,0.01870609]
[1772972787443,0.00152,67311.0,67301.0,0.01870609]
[1772972787867,0.00152,67311.0,67299.0,0.00152]
[1772972788539,0.00152,67311.0,67300.0,0.0002]
[1772972788848,0.07428316,67310.0,67300.0,0.0744942]
[1772972790054,0.04691028,67309.0,67300.0,0.0744942]
[1772972790273,0.04691028,67309.0,67300.0,0.0002]
[1772972791014,0.04691028,67307.0,67300.0,0.0002]
[1772972792855,0.07428758,67306.0,67300.0,0.0002]
[1772972793172,0.12119786,67306.0,67300.0,0.0002]
[1772972794419,0.12219786,67306.0,67300.0,0.0002]
[1772972794778,0.04691028,67305.0,67297.0,0.0002]
[1772972795034,0.04691028,67303.0,67297.0,0.0002]
[1772972796377,0.04791028,67303.0,67297.0,0.0002]
[1772972796613,0.04891028,67303.0,67297.0,0.0002]
[1772972797509,0.07429199,67302.0,67297.0,0.0002]
[1772972797689,0.04691028,67301.0,67297.0,0.0002]
[1772972799127,0.04791028,67301.0,67297.0,0.0002]
[1772972799424,0.04691028,67301.0,67297.0,0.0002]
[1772972799628,0.07428316,67310.0,67297.0,0.0002]
[1772972800331,0.00152,67309.0,67297.0,0.0002]
[1772972800706,0.001,67301.0,67297.0,0.0002]
[1772972800910,0.04599572,67308.0,67297.0,0.0002]
[1772972801639,0.04447572,67306.0,67297.0,0.0002]
[1772972801815,0.04447572,67304.0,67297.0,0.0002]
[1772972803906,0.04447572,67302.0,67297.0,0.0002]
[1772972804502,0.07429089,67303.0,67297.0,0.0002]
[1772972806303,0.07429089,67304.0,67297.0,0.0002]
[1772972807108,0.04447572,67303.0,67295.0,0.00575]
[1772972807249,0.04447572,67303.0,67293.0,0.0002]
[1772972807250,0.04599572,67302.0,67293.0,0.0002]
[1772972808278,0.0742931,67301.0,67293.0,0.0002]
[1772972810036,0.11876882,67301.0,67293.0,0.0002]
[1772972811437,0.04447572,67300.0,67293.0,0.0002]
[1772972812213,0.0742953,67299.0,67293.0,0.0002]
[1772972812638,0.11877102,67299.0,67293.0,0.0002]
[1772972812951,0.0742953,67299.0,67291.0,0.0002]
[1772972813155,0.04447572,67298.0,67289.0,0.0002]
[1772972813352,0.04447572,67298.0,67287.0,0.0002]
[1772972813958,0.09392893,67300.0,67289.0,0.04442333]
[1772972813959,0.00152,67300.0,67289.0,0.04442333]
[1772972814157,0.00152,67300.0,67288.0,0.07430745]
[1772972814158,0.00152,67299.0,67291.0,0.06325329]
[1772972814541,0.07429641,67298.0,67291.0,0.1375572]
[1772972815707,0.07429614,67299.0,67291.0,0.1375572]
[1772972816642,0.07429264,67302.0,67292.0,0.01882996]
[1772972816839,0.04599572,67301.0,67286.0,0.07450905]
[1772972817122,0.04599572,67301.0,67286.0,0.0002]
[1772972817250,0.04599572,67301.0,67286.0,0.0745092]
[1772972817450,0.04599572,67301.0,67287.0,0.07450844]
[1772972818117,0.11876992,67300.0,67287.0,0.0002]
[1772972818330,0.12028992,67300.0,67287.0,0.0002]
[1772972818535,0.0758142,67300.0,67287.0,0.0002]
[1772972818737,0.04447572,67299.0,67287.0,0.0002]
[1772972820224,0.04447572,67297.0,67287.0,0.0002]
[1772972820619,0.04447572,67297.0,67280.0,0.07476497]
[1772972820620,0.04447572,67295.0,67282.0,1e-08]
[1772972820822,0.04447572,67293.0,67282.0,1e-08]
[1772972821361,0.04447572,67293.0,67282.0,0.07431316]
[1772972821498,0.11877213,67298.0,67287.0,0.0002]
[1772972821693,0.11877213,67298.0,67287.0,0.00031905]
[1772972821694,0.00152,67297.0,67287.0,0.00031905]
[1772972821905,0.07429641,67298.0,67287.0,0.00031905]
[1772972822212,0.07429862,67296.0,67287.0,0.01914901]
[1772972822426,0.07429862,67296.0,67287.0,0.09345738]
[1772972822619,0.07451642,67301.0,67287.0,0.09345738]
[1772972822620,0.00022001,67304.0,67289.0,0.04369054]
[1772972822849,0.11900764,67308.0,67293.0,0.04360039]
[1772972822850,0.00022001,67308.0,67293.0,0.04360039]
[1772972823012,0.07450572,67308.0,67294.0,0.04512039]
[1772972823313,0.07450572,67308.0,67295.0,0.02031298]
[1772972823508,0.07450569,67308.0,67296.0,0.01879298]
[1772972824774,0.1193877,67308.0,67297.0,0.07429751]
[1772972825018,0.04488201,67307.0,67297.0,0.07429751]
[1772972825211,0.04488201,67307.0,67292.0,0.07430233]
[1772972825512,0.04488201,67307.0,67293.0,0.00152]
[1772972825823,0.04488201,67306.0,67293.0,0.00152]
[1772972826023,0.04488201,67306.0,67294.0,0.00152]
[1772972826362,0.04488201,67306.0,67292.0,0.07430233]
[1772972826600,0.04488201,67306.0,67293.0,0.00152]
[1772972827002,0.04488201,67304.0,67293.0,0.07582155]
[1772972827422,0.04488201,67304.0,67293.0,0.07430155]
[1772972827621,0.04488201,67304.0,67293.0,0.07582155]
[1772972829187,0.07429089,67303.0,67293.0,0.07602155]
[1772972830166,0.07429089,67303.0,67293.0,0.0002]
[1772972830167,0.04485278,67302.0,67293.0,0.0002]
[1772972831402,0.0742931,67301.0,67293.0,0.0002]
[1772972833970,0.07429089,67303.0,67293.0,0.0002]
[1772972834151,0.11914367,67303.0,67293.0,0.0002]
[1772972834771,0.07429089,67303.0,67293.0,0.0002]
[1772972834971,0.11914367,67303.0,67293.0,0.0002]
[1772972835624,0.00022001,67314.0,67294.0,0.01999275]
[1772972835824,0.07449965,67314.0,67296.0,0.01999275]
[1772972836029,0.07449965,67314.0,67298.0,0.07429641]
[1772972836438,0.07449965,67314.0,67301.0,0.04373546]
[1772972836614,0.07449965,67314.0,67304.0,0.06372821]
[1772972836832,0.07449965,67314.0,67305.0,0.01999275]
[1772972838156,0.07449965,67314.0,67305.0,0.09428116]
[1772972838355,0.00022001,67315.0,67306.0,0.01999275]
[1772972838654,0.07427269,67320.0,67310.0,0.04373546]
[1772972838952,0.07427269,67320.0,67311.0,0.01999275]
[1772972840151,0.07427269,67320.0,67311.0,0.09427418]
[1772972840920,0.07427269,67320.0,67303.0,0.07429024]
[1772972840921,0.04485278,67319.0,67304.0,0.00152]
[1772972841107,0.04485278,67319.0,67305.0,0.07428856]
[1772972842239,0.11912711,67318.0,67305.0,0.07428856]
[1772972842433,0.04485278,67317.0,67305.0,0.07428856]
[1772972843394,0.04485278,67317.0,67306.0,0.00152]
[1772972843581,0.04485278,67317.0,67304.0,0.07592862]
[1772972844373,0.07427433,67318.0,67306.0,0.01999275]
[1772972844572,0.07579433,67318.0,67308.0,0.04373546]
[1772972844773,0.07427433,67318.0,67308.0,0.06372821]
[1772972844973,0.07427433,67318.0,67309.0,0.01999275]
[1772972845175,0.07427433,67319.0,67309.0,0.01999275]
[1772972845577,0.00022001,67320.0,67309.0,0.01999275]
[1772972845866,0.07466669,67325.0,67315.0,0.01999275]
[1772972846178,0.07466669,67325.0,67315.0,0.06372821]
[1772972846385,0.0004,67325.0,67316.0,0.07427654]
[1772972846582,0.0004,67325.0,67316.0,0.119532]
[1772972846788,0.00022001,67327.0,67317.0,0.04373546]
[1772972846980,0.00022001,67328.0,67320.0,0.06372821]
[1772972847181,0.00022001,67328.0,67318.0,0.01999275]
[1772972847358,0.00022001,67328.0,67320.0,0.06372821]
[1772972847785,0.07424596,67344.0,67317.0,0.04373546]
[1772972847992,0.04485278,67341.0,67320.0,0.01999275]
[1772972848191,0.07449786,67342.0,67323.0,0.04373546]
[1772972848192,0.0744979,67342.0,67323.0,0.04373546]
[1772972848390,0.0744979,67342.0,67328.0,0.04373546]
[1772972848610,0.0744979,67342.0,67325.0,0.07426661]
[1772972849219,0.0744979,67342.0,67327.0,0.01999275]
[1772972849425,0.0744979,67342.0,67329.0,0.01999275]
[1772972849426,0.0002496,67342.0,67329.0,0.01999275]
[1772972849625,0.0002496,67342.0,67325.0,0.07426661]
[1772972849626,0.0721813,67348.0,67332.0,0.04373546]
[1772972849835,0.07257811,67348.0,67334.0,0.06372821]
[1772972850284,0.11743089,67348.0,67334.0,0.06372821]
[1772972850694,0.11743089,67348.0,67335.0,0.07425558]
[1772972850695,0.11759249,67348.0,67335.0,0.07425558]
[1772972850837,0.11759249,67348.0,67336.0,0.00152]
[1772972851441,0.11911249,67348.0,67336.0,0.00152]
[1772972851872,0.11759249,67348.0,67336.0,0.00152]
[1772972852236,0.07273971,67348.0,67338.0,0.04373546]
[1772972853037,0.07273971,67348.0,67338.0,0.00152]
[1772972853171,0.01946802,67346.0,67328.0,0.00152]
[1772972853372,0.04485278,67343.0,67329.0,0.00152]
[1772972853779,0.04485278,67343.0,67324.0,0.07426661]
[1772972853979,0.04485278,67343.0,67326.0,0.00152]
[1772972854915,0.01946802,67341.0,67326.0,0.00152]
[1772972855159,0.07424296,67347.0,67327.0,0.00152]
[1772972855363,0.07424296,67347.0,67329.0,0.04373546]
[1772972855557,0.07424296,67347.0,67328.0,0.00152]
[1772972855558,0.07480013,67348.0,67333.0,0.04373546]
[1772972855714,0.07632013,67348.0,67335.0,0.04373546]
[1772972855916,0.07632013,67348.0,67337.0,0.01817478]
[1772972856133,0.07632013,67348.0,67335.0,0.04525546]
[1772972856339,0.07480013,67348.0,67335.0,0.04525546]
[1772972856546,0.07464683,67348.0,67335.0,0.04525546]
[1772972856993,0.04485278,67347.0,67335.0,0.00152]
[1772972857295,0.04485278,67340.0,67327.0,0.00152]
[1772972857483,0.07424345,67346.0,67319.0,0.07427213]
[1772972857484,0.0643208,67338.0,67324.0,0.00152]
[1772972857630,0.04637278,67337.0,67324.0,0.00152]
[1772972858476,0.01946802,67336.0,67324.0,0.00152]
[1772972858679,0.01946802,67332.0,67314.0,0.07588497]
[1772972858859,0.04236259,67330.0,67314.0,0.07588497]
[1772972859056,0.04236259,67327.0,67314.0,0.07588497]
[1772972859343,0.04220921,67327.0,67314.0,0.07588497]
[1772972860138,0.04220921,67327.0,67314.0,0.07603826]
[1772972861345,0.04220921,67327.0,67313.0,0.00152]
[1772972861346,0.1166281,67326.0,67313.0,0.00152]
[1772972861471,0.04276259,67325.0,67313.0,0.00163907]
[1772972863468,0.07426772,67324.0,67314.0,0.07427875]
[1772972864076,0.01946802,67322.0,67313.0,0.00011907]
[1772972864248,0.07426772,67324.0,67308.0,0.07428506]
[1772972864249,0.04236259,67320.0,67311.0,0.00148]
[1772972864619,0.04236259,67320.0,67306.0,0.07428688]
[1772972864826,0.04236259,67320.0,67306.0,0.00011905]
[1772972864827,0.04236259,67318.0,67306.0,0.00011905]
[1772972865072,0.04236259,67314.0,67306.0,0.00011905]
[1772972865275,0.04236259,67313.0,67306.0,0.00011905]
[1772972865450,0.11664355,67312.0,67306.0,0.00011905]
[1772972866440,0.11664355,67312.0,67306.0,0.00031905]
[1772972867278,0.07579567,67317.0,67306.0,0.03034588]
[1772972867453,0.07579567,67317.0,67307.0,0.07428647]
[1772972867831,0.0742755,67317.0,67307.0,0.07413647]
[1772972868483,0.11663809,67317.0,67306.0,0.07460615]
[1772972871222,0.0742755,67317.0,67306.0,0.07460615]
[1772972871504,0.11663809,67317.0,67306.0,0.07460615]
[1772972872832,0.0742755,67317.0,67306.0,0.07460615]
[1772972872973,0.04236259,67316.0,67306.0,0.07460615]
[1772972873803,0.04236259,67316.0,67306.0,0.07612615]
[1772972875300,0.04236259,67316.0,67306.0,0.00031905]
[1772972875301,0.04236259,67314.0,67306.0,0.00031905]
[1772972877093,0.07427764,67315.0,67306.0,0.07460593]
[1772972877738,0.07427764,67315.0,67306.0,0.00031905]
[1772972877907,0.07427764,67315.0,67306.0,0.07460663]
[1772972879548,0.04236259,67317.0,67306.0,0.07460663]
[1772972880128,0.00022001,67315.0,67306.0,0.07460663]
[1772972880452,0.0425826,67315.0,67306.0,0.07460663]
[1772972881051,0.0425826,67315.0,67306.0,0.00031905]
[1772972881713,0.07427875,67314.0,67306.0,0.00031905]
[1772972882846,0.07427875,67314.0,67306.0,0.07460607]
[1772972883415,0.07427875,67314.0,67306.0,0.00031905]
[1772972885827,0.07427875,67314.0,67306.0,0.07460661]
[1772972886230,0.04346006,67313.0,67306.0,0.00031905]
[1772972887046,0.07427875,67314.0,67306.0,0.00031905]
[1772972887612,0.07427875,67314.0,67306.0,0.00016905]
[1772972888659,0.07449876,67314.0,67306.0,0.00016905]
[1772972889686,0.00022001,67314.0,67306.0,0.00016905]
[1772972890442,0.00022001,67314.0,67306.0,0.01095278]
[1772972891036,0.07449917,67314.0,67306.0,0.00016905]
[1772972891239,0.04256723,67313.0,67306.0,0.00016905]
[1772972892488,0.11684765,67313.0,67306.0,0.00016905]
[1772972896390,0.07428042,67313.0,67306.0,0.00016905]
[1772972896735,0.00015,67308.0,67306.0,0.00016905]
[1772972896964,0.00015,67308.0,67299.0,0.01093462]
[1772972896965,0.00015,67308.0,67300.0,0.07429318]
[1772972897118,0.00015,67308.0,67302.0,0.00152]
[1772972897119,0.04271723,67308.0,67302.0,0.00152]
[1772972897301,0.07449883,67314.0,67302.0,0.02943425]
[1772972897505,0.07449883,67314.0,67303.0,0.01043912]
[1772972897714,0.07449883,67314.0,67306.0,0.0002]
[1772972899129,0.00022001,67314.0,67306.0,0.0002]
[1772972899750,0.07449906,67314.0,67306.0,0.0002]
[1772972900011,0.00022001,67314.0,67306.0,0.0002]
[1772972900195,0.13012,67344.0,67306.0,0.0002]
[1772972900196,0.07426877,67324.0,67307.0,0.00152]
[1772972900343,1e-08,67334.0,67310.0,0.01029736]
[1772972900589,1e-08,67334.0,67321.0,0.01029736]
[1772972900788,1e-08,67334.0,67311.0,0.07428206]
[1772972900789,0.07446312,67347.0,67330.0,0.01067142]
[1772972900995,0.07446312,67347.0,67332.0,0.01067142]
[1772972901193,0.07446312,67347.0,67333.0,0.00152]
[1772972901420,0.07446312,67347.0,67335.0,0.01067142]
[1772972902408,0.07446312,67347.0,67336.0,0.07425448]
[1772972903426,0.07446312,67347.0,67334.0,0.07425625]
[1772972903427,0.04256723,67346.0,67334.0,0.07425625]
[1772972904664,0.00022001,67347.0,67335.0,0.01051965]
[1772972905153,0.00022001,67347.0,67335.0,0.02951478]
[1772972905352,0.00022001,67346.0,67335.0,0.02951478]
[1772972905719,0.00022001,67346.0,67334.0,0.07425625]
[1772972905959,0.04278724,67346.0,67334.0,0.07425625]
[1772972907334,0.11703112,67346.0,67334.0,0.07425625]
[1772972907734,0.04278724,67346.0,67334.0,0.07425625]
[1772972907929,0.00022001,67346.0,67334.0,0.08457329]
[1772972908243,0.07695979,67350.0,67336.0,0.01031704]
[1772972908244,0.0012,67350.0,67336.0,0.01031704]
[1772972908471,0.0012,67350.0,67338.0,0.01031704]
[1772972908796,0.0012,67350.0,67339.0,0.00152]
[1772972909374,0.0012,67350.0,67340.0,0.07425007]
[1772972910010,0.07423767,67352.0,67342.0,0.01023948]
[1772972910216,0.01897472,67358.0,67342.0,0.00152]
[1772972910416,0.06154195,67356.0,67343.0,0.00152]
[1772972910938,0.00022001,67360.0,67344.0,0.01059633]
[1772972911152,0.07444811,67360.0,67344.0,0.01899513]
[1772972911364,0.02,67373.0,67347.0,0.01059633]
[1772972911535,0.04256723,67371.0,67347.0,0.01059633]
[1772972911748,0.04256723,67370.0,67347.0,0.01059633]
[1772972911934,0.02,67369.0,67347.0,0.01059633]
[1772972912136,0.02152,67369.0,67347.0,0.01059633]
[1772972912696,0.00022001,67360.0,67347.0,0.01059633]
[1772972912900,0.02152,67369.0,67347.0,0.01059633]
[1772972913135,0.04256723,67373.0,67347.0,0.01059633]
[1772972913377,0.02,67372.0,67349.0,0.01101627]
[1772972913580,0.0004,67375.0,67351.0,0.01101627]
[1772972913779,0.04256723,67373.0,67351.0,0.01101627]
[1772972913984,0.04256723,67369.0,67352.0,0.00152]
[1772972914159,0.06256723,67367.0,67353.0,0.00152]
[1772972914473,0.02152,67367.0,67354.0,0.01096469]
[1772972914859,0.02,67372.0,67354.0,0.01096469]
[1772972915210,0.0004,67375.0,67354.0,0.01096469]
[1772972915345,0.00192,67375.0,67356.0,0.01096764]
[1772972915764,0.0004,67375.0,67356.0,0.01096764]
[1772972915964,0.00192,67375.0,67356.0,0.01096764]
[1772972916188,0.0004,67375.0,67356.0,0.01096764]
[1772972916805,1e-08,67375.0,67356.0,0.01096764]
[1772972917183,0.00039721,67375.0,67356.0,0.01096764]
[1772972917421,0.00039721,67375.0,67358.0,0.01086111]
[1772972917569,0.00039721,67375.0,67360.0,0.01086111]
[1772972918809,0.02666092,67382.0,67363.0,0.01954989]
[1772972919010,0.04505416,67390.0,67368.0,0.01076788]
[1772972919212,0.07418618,67398.0,67371.0,0.0742159]
[1772972919213,0.01961018,67393.0,67371.0,0.0742159]
[1772972919452,0.0042091,67391.0,67373.0,0.00906788]
[1772972919650,0.02411532,67405.0,67373.0,0.00906788]
[1772972919848,0.06466434,67409.0,67375.0,0.0004]
[1772972920048,0.06466434,67409.0,67376.0,0.00152]
[1772972920263,0.07417893,67405.0,67376.0,0.00152]
[1772972920466,0.04505416,67400.0,67377.0,0.00921101]
[1772972920644,0.04505416,67400.0,67376.0,0.02106989]
[1772972920645,0.06466434,67399.0,67379.0,0.00921101]
[1772972921044,0.06466434,67399.0,67381.0,0.00917807]
[1772972921305,0.00575,67403.0,67384.0,0.07420159]
[1772972921452,0.00575,67403.0,67389.0,0.00917807]
[1772972921646,0.00575,67403.0,67391.0,0.00917807]
[1772972921852,0.00575,67403.0,67390.0,0.00152]
[1772972921853,1e-08,67403.0,67394.0,0.00912545]
[1772972922379,1e-08,67403.0,67390.0,0.00152]
[1772972922577,1e-08,67403.0,67384.0,0.07420159]
[1772972922578,0.01961018,67401.0,67391.0,0.00152]
[1772972922783,0.06466434,67401.0,67392.0,0.00152]
[1772972922994,0.000119,67403.0,67393.0,0.00152]
[1772972923235,0.000119,67403.0,67394.0,0.001]
[1772972923428,0.000119,67403.0,67393.0,0.07419143]
[1772972923625,1e-08,67403.0,67394.0,0.0090931]
[1772972923870,0.0001128,67413.0,67396.0,0.0090931]
[1772972924007,0.0001128,67413.0,67396.0,0.00921209]
[1772972924210,0.0001128,67413.0,67397.0,0.00904043]
[1772972924776,0.06477714,67413.0,67398.0,0.00152]
[1772972924981,0.0001128,67413.0,67398.0,0.00152]
[1772972925104,0.08316946,67420.0,67398.0,0.00152]
[1772972925105,0.0741655,67417.0,67401.0,0.00898818]
[1772972925451,0.04505416,67418.0,67402.0,0.07418177]
[1772972925655,0.01961018,67419.0,67402.0,0.07418177]
[1772972925821,0.04505416,67418.0,67402.0,0.07418177]
[1772972926016,0.01961018,67417.0,67402.0,0.07418177]
[1772972926643,0.04505416,67416.0,67402.0,0.07418177]
[1772972926864,0.06466434,67418.0,67402.0,0.08306503]
[1772972927181,0.00022001,67409.0,67402.0,0.08306503]
[1772972927388,0.0105269,67420.0,67402.0,0.08306503]
[1772972927389,0.0090069,67420.0,67405.0,0.00888326]
[1772972927664,0.0090069,67420.0,67404.0,0.07417957]
[1772972927665,1e-08,67435.0,67409.0,0.01915943]
[1772972927865,1e-08,67435.0,67412.0,0.00883139]
[1772972928209,0.04505416,67430.0,67413.0,0.00152]
[1772972928414,0.07414575,67435.0,67408.0,0.00152]
[1772972928415,0.04505416,67426.0,67408.0,0.00152]
[1772972928589,0.01961018,67423.0,67408.0,0.00152]
[1772972928792,0.01961018,67419.0,67408.0,0.00152]
[1772972928992,0.01961018,67421.0,67408.0,0.00152]
[1772972929133,0.06466434,67420.0,67408.0,0.00152]
[1772972929333,0.07414767,67433.0,67405.0,0.07417788]
[1772972929537,0.01961018,67429.0,67406.0,0.00152]
[1772972929839,0.04505416,67424.0,67407.0,0.00152]
[1772972930054,0.01961018,67421.0,67408.0,0.00252]
[1772972930255,0.00144,67424.0,67403.0,0.00575]
[1772972930256,0.04505416,67418.0,67403.0,0.00575]
[1772972930541,0.04505416,67412.0,67400.0,0.07458374]
[1772972930769,0.04505416,67410.0,67400.0,0.07458374]
[1772972931170,0.01961018,67410.0,67400.0,0.07458374]
[1772972931396,0.04505416,67409.0,67400.0,0.07458374]
[1772972931621,0.04505416,67409.0,67406.0,0.001]
[1772972931979,0.04505416,67409.0,67400.0,0.07458374]
[1772972932157,0.07416565,67417.0,67400.0,0.07458374]
[1772972932158,0.00148,67417.0,67402.0,0.00152]
[1772972932446,0.04505416,67417.0,67402.0,0.00152]
[1772972932676,0.06466434,67417.0,67402.0,0.00152]
[1772972932829,0.04505416,67416.0,67402.0,0.00152]
[1772972933228,0.04505416,67414.0,67402.0,0.00152]
[1772972933577,0.01961018,67421.0,67404.0,0.00998857]
[1772972933712,0.04505416,67420.0,67404.0,0.00998857]
[1772972933910,0.09377147,67421.0,67402.0,0.07570081]
[1772972933911,0.01961018,67417.0,67402.0,0.07570144]
[1772972934107,0.04505416,67414.0,67402.0,0.07570144]
[1772972934301,0.00022001,67418.0,67402.0,0.07570144]
[1772972934302,0.01961018,67411.0,67402.0,0.00152]
[1772972934515,0.04505416,67408.0,67402.0,0.00152]
[1772972934866,0.04505416,67408.0,67400.0,0.0004]
[1772972935071,0.04505416,67408.0,67387.0,0.074198]